bitfinex/quotes_BTCUSD_20250618
["timestamp","ask_amount","ask_price","bid_price","bid_amount"]
[1750207780332,0.15904,104800.0,104790.0,0.35999509]
[1750207780558,0.15904,104800.0,104790.0,0.42559509]
[1750207780785,0.15908736,104800.0,104790.0,0.43513753]
[1750207781019,0.15908736,104800.0,104790.0,0.42559509]
[1750207781299,0.16108736,104800.0,104790.0,0.43513753]
[1750207781510,0.15908736,104800.0,104790.0,0.42559509]
[1750207781957,0.15908736,104800.0,104790.0,0.43513734]
[1750207782428,0.16008736,104800.0,104790.0,0.43513734]
[1750207782629,0.00104736,104800.0,104790.0,0.43513734]
[1750207783069,4.736e-05,104800.0,104790.0,0.65185698]
[1750207783528,4.736e-05,104800.0,104790.0,0.66639783]
[1750207785585,4.736e-05,104800.0,104790.0,0.67339783]
[1750207787006,4.736e-05,104800.0,104790.0,0.62913044]
[1750207787257,0.40674237,104830.0,104820.0,0.0309]
[1750207787258,0.25487454,104830.0,104820.0,0.0309]
[1750207787503,0.23584423,104830.0,104820.0,0.0309]
[1750207787767,0.2549221,104830.0,104820.0,0.0631]
[1750207787982,0.26446126,104830.0,104820.0,0.0309]
[1750207788206,0.26446208,104830.0,104810.0,0.0618]
[1750207788483,0.41392283,104830.0,104810.0,0.11159774]
[1750207788723,0.41592283,104830.0,104810.0,0.11159774]
[1750207788968,0.00953934,104820.0,104810.0,0.0618]
[1750207789155,0.2357985,104820.0,104810.0,0.0618]
[1750207790443,0.76706989,104830.0,104810.0,0.0618]
[1750207790706,0.38521907,104820.0,104810.0,0.0618]
[1750207791758,0.42450472,104820.0,104810.0,0.0618]
[1750207792016,0.43404433,104820.0,104810.0,0.0618]
[1750207792250,0.42450472,104820.0,104810.0,0.0618]
[1750207792802,0.43404433,104820.0,104810.0,0.0618]
[1750207793270,0.42450472,104820.0,104810.0,0.0618]
[1750207793736,0.43404424,104820.0,104810.0,0.0618]
[1750207793996,0.44358385,104820.0,104810.0,0.0618]
[1750207794214,0.45312365,104820.0,104810.0,0.0618]
[1750207794435,0.44358385,104820.0,104810.0,0.0618]
[1750207795094,0.27508424,104820.0,104810.0,0.0618]
[1750207795311,0.43404424,104820.0,104810.0,0.0618]
[1750207796686,0.44358394,104820.0,104810.0,0.0618]
[1750207797774,0.42450472,104820.0,104810.0,0.0618]
[1750207798651,0.43404433,104820.0,104810.0,0.0618]
[1750207799299,0.38521925,104820.0,104810.0,0.0618]
[1750207799514,0.39475868,104820.0,104810.0,0.0618]
[1750207800163,0.44239007,104820.0,104810.0,0.0618]
[1750207800388,0.42331066,104820.0,104810.0,0.0618]
[1750207801034,0.4327395,104820.0,104810.0,0.0618]
[1750207801247,0.43273941,104820.0,104810.0,0.0618]
[1750207801745,0.20659102,104820.0,104810.0,0.0618]
[1750207801957,0.6588879,104820.0,104810.0,0.0618]
[1750207802159,0.43273932,104820.0,104810.0,0.0618]
[1750207802377,0.6493481,104820.0,104810.0,0.0618]
[1750207802883,0.63980858,104820.0,104810.0,0.0618]
[1750207803095,0.25470037,104820.0,104810.0,0.0618]
[1750207803309,0.41362037,104820.0,104810.0,0.0618]
[1750207803963,0.41362037,104820.0,104810.0,0.40382479]
[1750207803964,0.19701159,104820.0,104810.0,0.40382479]
[1750207804223,4.746e-05,104830.0,104820.0,0.26494344]
[1750207804452,4.746e-05,104830.0,104820.0,0.08368023]
[1750207804453,0.15896746,104830.0,104820.0,0.08368023]
[1750207804677,0.15896746,104830.0,104820.0,0.07414016]
[1750207804895,0.15896746,104830.0,104820.0,0.14027973]
[1750207805118,0.15896746,104830.0,104820.0,0.23652149]
[1750207805582,0.15896746,104830.0,104820.0,0.24606156]
[1750207806039,0.60343788,104840.0,104830.0,0.062]
[1750207806256,0.61297558,104840.0,104830.0,0.062]
[1750207806695,0.83912234,104840.0,104830.0,0.062]
[1750207806944,0.62245057,104840.0,104830.0,0.062]
[1750207807152,0.78137057,104840.0,104830.0,0.062]
[1750207807372,0.78437057,104840.0,104830.0,0.062]
[1750207807589,0.98468192,104840.0,104820.0,0.16148422]
[1750207807807,0.6093634,104840.0,104820.0,0.16148422]
[1750207808028,0.21654579,104830.0,104820.0,0.16148422]
[1750207808273,0.22608422,104830.0,104820.0,0.16148422]
[1750207808515,0.80144753,104840.0,104820.0,0.16148422]
[1750207808724,0.80044753,104840.0,104820.0,0.16148422]
[1750207808947,0.80344753,104840.0,104820.0,0.16148422]
[1750207809462,0.00953843,104830.0,104820.0,0.16148422]
[1750207809679,0.98467684,104840.0,104820.0,0.16148422]
[1750207809680,0.80724876,104840.0,104820.0,0.16148422]
[1750207809901,0.7843714,104840.0,104820.0,0.16148422]
[1750207810123,0.56582561,104840.0,104820.0,0.16148422]
[1750207810332,0.80524734,104840.0,104820.0,0.16148422]
[1750207810520,0.8052512,104840.0,104820.0,0.16148422]
[1750207810720,0.8042512,104840.0,104820.0,0.16148422]
[1750207810925,0.8062512,104840.0,104820.0,0.16148422]
[1750207811581,0.80625111,104840.0,104830.0,0.0304]
[1750207811821,0.79771295,104840.0,104830.0,0.0304]
[1750207812003,0.80725111,104840.0,104830.0,0.0304]
[1750207812208,0.78437131,104840.0,104830.0,0.0304]
[1750207812435,0.8072532,104840.0,104830.0,0.0304]
[1750207812578,0.8062532,104840.0,104830.0,0.0304]
[1750207812791,0.81579154,104840.0,104830.0,0.0304]
[1750207813013,0.81579154,104840.0,104830.0,0.0629]
[1750207813367,0.8062532,104840.0,104830.0,0.0629]
[1750207813569,0.8042532,104840.0,104830.0,0.0629]
[1750207813782,0.8072532,104840.0,104830.0,0.0629]
[1750207813986,0.79771504,104840.0,104830.0,0.0629]
[1750207814224,0.78813669,104840.0,104830.0,0.0629]
[1750207814430,0.77479278,104840.0,104830.0,0.0629]
[1750207814851,0.78433094,104840.0,104830.0,0.0304]
[1750207815700,0.77479278,104840.0,104830.0,0.0304]
[1750207815907,0.79767652,104840.0,104830.0,0.0632]
[1750207816119,0.78813855,104840.0,104830.0,0.0632]
[1750207816556,0.79767643,104840.0,104830.0,0.0632]
[1750207816937,0.78813855,104840.0,104830.0,0.0632]
[1750207817152,0.79767634,104840.0,104830.0,0.0632]
[1750207817577,0.80721422,104840.0,104830.0,0.0632]
[1750207817785,0.79767634,104840.0,104830.0,0.0632]
[1750207818430,0.7747925,104840.0,104830.0,0.0632]
[1750207819316,0.78433048,104840.0,104830.0,0.0632]
[1750207819540,0.7747925,104840.0,104830.0,0.0632]
[1750207819762,0.76525471,104840.0,104830.0,0.0632]
[1750207820194,0.77479241,104840.0,104830.0,0.0632]
[1750207821569,0.5968371,104840.0,104830.0,0.0632]
[1750207821789,0.76525462,104840.0,104830.0,0.0632]
[1750207822038,0.77479232,104840.0,104830.0,0.0632]
[1750207822681,0.76525462,104840.0,104830.0,0.0632]
[1750207823104,0.77479232,104840.0,104830.0,0.0632]
[1750207823353,0.76525462,104840.0,104830.0,0.0632]
[1750207823576,0.7557171,104840.0,104830.0,0.0632]
[1750207823787,0.76525471,104840.0,104830.0,0.0632]
[1750207824709,0.7557171,104840.0,104830.0,0.0632]
[1750207825525,0.7652548,104840.0,104830.0,0.0632]
[1750207825815,0.38029131,104840.0,104830.0,0.0632]
[1750207826267,0.7557171,104840.0,104830.0,0.0632]
[1750207826268,0.53917131,104840.0,104830.0,0.0632]
[1750207826562,0.19913131,104840.0,104830.0,0.10187429]
[1750207827179,0.4156451,104840.0,104830.0,0.10187429]
[1750207827699,0.16184,104840.0,104830.0,0.19811605]
[1750207827964,0.37835379,104840.0,104830.0,0.19811605]
[1750207828216,0.37835379,104840.0,104830.0,0.2076553]
[1750207828465,0.002,104840.0,104830.0,0.2076553]
[1750207828774,0.16084,104840.0,104830.0,0.2076553]
[1750207828962,0.16084,104840.0,104830.0,0.19811605]
[1750207829682,0.16084,104840.0,104830.0,0.20765521]
[1750207829919,0.15884,104840.0,104830.0,0.63403195]
[1750207830177,0.15884,104840.0,104830.0,0.62449306]
[1750207830436,0.15884,104840.0,104830.0,0.64357074]
[1750207830674,0.15884,104840.0,104830.0,0.62449306]
[1750207830918,0.15884,104840.0,104830.0,0.61495408]
[1750207831177,0.15884,104840.0,104830.0,0.62449315]
[1750207831381,0.15884,104840.0,104830.0,0.64357102]
[1750207831585,0.15884,104840.0,104830.0,0.63403213]
[1750207831775,0.15884,104840.0,104830.0,0.64357102]
[1750207832365,0.15884,104840.0,104830.0,0.65310981]
[1750207832936,0.15884,104840.0,104830.0,0.64357065]
[1750207833353,0.37842332,104850.0,104840.0,0.0621]
[1750207833551,0.37842332,104850.0,104840.0,0.22258878]
[1750207833552,0.19726332,104850.0,104840.0,0.22258878]
[1750207834264,0.19722332,104850.0,104840.0,0.22258878]
[1750207834661,0.19822332,104850.0,104840.0,0.22258878]
[1750207834887,0.19822332,104850.0,104840.0,0.15834176]
[1750207835343,0.41473711,104850.0,104840.0,0.15834176]
[1750207836370,0.25793711,104850.0,104840.0,0.15834176]
[1750207836584,0.41673711,104850.0,104840.0,0.15834176]
[1750207838968,0.37731379,104850.0,104840.0,0.15834176]
[1750207839177,0.37531379,104850.0,104840.0,0.22258875]
[1750207839779,0.37531379,104850.0,104840.0,0.15834176]
[1750207840690,0.38485049,104850.0,104840.0,0.0308]
[1750207840912,0.42468737,104850.0,104830.0,0.10558]
[1750207841128,0.21651379,104840.0,104830.0,0.20182176]
[1750207842608,0.21651379,104840.0,104830.0,0.20282176]
[1750207843068,0.21651379,104840.0,104830.0,0.20182176]
[1750207843242,0.21651379,104840.0,104830.0,0.20382176]
[1750207843858,0.22605131,104840.0,104830.0,0.16374176]
[1750207844073,0.21651379,104840.0,104830.0,0.0365]
[1750207845363,0.38481131,104840.0,104830.0,0.0365]
[1750207845591,0.37527379,104840.0,104830.0,0.0365]
[1750207846455,0.38481131,104840.0,104830.0,0.0365]
[1750207846911,0.39434901,104840.0,104830.0,0.0365]
[1750207847146,0.39434901,104840.0,104830.0,0.004]
[1750207847552,0.38481131,104840.0,104830.0,0.004]
[1750207847775,0.37527379,104840.0,104830.0,0.004]
[1750207847994,0.38481131,104840.0,104830.0,0.0358]
[1750207848197,0.39434901,104840.0,104830.0,0.0358]
[1750207848440,0.37527379,104840.0,104830.0,0.0358]
[1750207849333,0.15876,104840.0,104830.0,0.0358]
[1750207849580,0.37527379,104840.0,104830.0,0.068]
[1750207850046,0.2260514,104840.0,104830.0,0.068]
[1750207850272,0.38481131,104840.0,104830.0,0.068]
[1750207850484,0.37527379,104840.0,104830.0,0.068]
[1750207854975,0.37527379,104840.0,104830.0,0.568]
[1750207856908,0.38481131,104840.0,104830.0,0.568]
[1750207857109,0.37527379,104840.0,104830.0,0.568]
[1750207857323,0.37523379,104840.0,104830.0,0.568]
[1750207857527,0.37523379,104840.0,104830.0,0.66414922]
[1750207857979,0.38477131,104840.0,104830.0,0.568]
[1750207858164,0.37523379,104840.0,104830.0,0.568]
[1750207858593,0.37523379,104840.0,104830.0,0.5358]
[1750207858807,0.37523379,104840.0,104830.0,0.504]
[1750207859018,0.3847714,104840.0,104830.0,0.504]
[1750207859652,0.37523379,104840.0,104830.0,0.5371]
[1750207860765,0.38477149,104840.0,104830.0,0.5371]
[1750207860983,0.15868,104840.0,104830.0,0.5686]
[1750207861198,0.37519379,104840.0,104830.0,0.5686]
[1750207865023,0.3847314,104840.0,104830.0,0.5686]
[1750207865322,0.37519379,104840.0,104830.0,0.5686]
[1750207865539,0.15868,104840.0,104830.0,0.5686]
[1750207865745,0.37519379,104840.0,104830.0,0.5686]
[1750207868577,0.39426947,104840.0,104830.0,0.5686]
[1750207868809,0.69195958,104840.0,104830.0,0.504]
[1750207869037,1.04533561,104840.0,104830.0,0.504]
[1750207869265,1.23610249,104840.0,104830.0,0.504]
[1750207872072,1.22656451,104840.0,104830.0,0.504]
[1750207872971,1.21702644,104840.0,104830.0,0.504]
[1750207873237,0.02291373,104840.0,104830.0,0.88105555]
[1750207873510,0.1007127,104880.0,104860.0,0.27410325]
[1750207873743,0.2593127,104880.0,104870.0,0.0643]
[1750207873959,0.61838064,104880.0,104870.0,0.0643]
[1750207874202,0.00953497,104870.0,104860.0,0.15754176]
[1750207874433,0.22604867,104870.0,104860.0,0.0313]
[1750207874669,0.23558373,104870.0,104860.0,0.0313]
[1750207874890,0.23596302,104870.0,104860.0,0.0313]
[1750207875106,0.22642796,104870.0,104850.0,0.11473743]
[1750207875336,0.38502796,104870.0,104850.0,0.21097919]
[1750207875556,0.39456293,104870.0,104860.0,0.003]
[1750207876011,0.38502796,104870.0,104860.0,0.002]
[1750207876222,0.1686095,104870.0,104860.0,0.002]
[1750207876441,0.17814456,104870.0,104860.0,0.002]
[1750207876652,0.17814447,104870.0,104860.0,0.002]
[1750207876869,0.1686095,104870.0,104860.0,0.0647]
[1750207877316,0.1686095,104870.0,104860.0,0.0627]
[1750207877556,0.15907462,104870.0,104860.0,0.0627]
[1750207877763,0.1686095,104870.0,104860.0,0.0627]
[1750207878205,0.15907462,104870.0,104860.0,0.0637]
[1750207878448,0.16860941,104870.0,104860.0,0.0637]
[1750207880198,0.17814447,104870.0,104860.0,0.0637]
[1750207880419,0.17814438,104870.0,104860.0,0.0637]
[1750207880640,0.16860941,104870.0,104860.0,0.0637]
[1750207881114,0.15907462,104870.0,104860.0,0.0637]
[1750207881755,0.1686095,104870.0,104860.0,0.0637]
[1750207881978,0.17814456,104870.0,104860.0,0.0637]
[1750207882619,0.17814447,104870.0,104860.0,0.0637]
[1750207883306,0.1686095,104870.0,104860.0,0.0637]
[1750207883798,0.17814456,104870.0,104860.0,0.0637]
[1750207884018,0.1686095,104870.0,104860.0,0.0637]
[1750207884692,0.39456302,104870.0,104860.0,0.0637]
[1750207884938,0.41363379,104870.0,104860.0,0.001]
[1750207885152,0.4136337,104870.0,104860.0,0.001]
[1750207885367,0.40409827,104870.0,104860.0,0.001]
[1750207885808,0.38502796,104870.0,104860.0,0.001]
[1750207886024,0.39456312,104870.0,104860.0,0.001]
[1750207887395,0.40409846,104870.0,104860.0,0.001]
[1750207887619,0.18767991,104870.0,104860.0,0.001]
[1750207888019,0.17814466,104870.0,104860.0,0.001]
[1750207888441,0.17814456,104870.0,104860.0,0.0652]
[1750207889897,0.18767972,104870.0,104860.0,0.0652]
[1750207890548,0.40409818,104870.0,104860.0,0.0652]
[1750207891544,0.39456302,104870.0,104860.0,0.0652]
[1750207892230,0.40409827,104870.0,104860.0,0.0652]
[1750207892501,0.39456302,104870.0,104860.0,0.0652]
[1750207893667,0.38502796,104870.0,104860.0,0.0652]
[1750207893885,0.00047462,104870.0,104860.0,0.12047059]
[1750207894104,0.15899462,104870.0,104860.0,0.12047059]
[1750207895650,0.01000959,104870.0,104860.0,0.12047059]
[1750207895885,0.0100095,104870.0,104860.0,0.0652]
[1750207896393,0.24549836,104870.0,104860.0,0.0338]
[1750207897066,0.23596302,104870.0,104860.0,0.0338]
[1750207897301,0.24549827,104870.0,104860.0,0.0338]
[1750207898437,0.2550337,104870.0,104860.0,0.0338]
[1750207899138,0.2550337,104870.0,104860.0,0.67921534]
[1750207899139,0.00047462,104870.0,104860.0,0.67921534]
[1750207899360,0.00047462,104870.0,104860.0,0.67683151]
[1750207900042,0.00047462,104870.0,104860.0,0.69137236]
[1750207901168,0.00047462,104870.0,104860.0,0.84985236]
[1750207909048,0.00047462,104870.0,104860.0,0.84031648]
[1750207909275,0.00047462,104870.0,104860.0,0.84985236]
[1750207912805,0.00047462,104870.0,104860.0,0.84885236]
[1750207913249,0.00047462,104870.0,104860.0,0.85185236]
[1750207913595,0.00047462,104870.0,104860.0,0.85485236]
[1750207918762,0.00047462,104870.0,104860.0,0.85185236]
[1750207918994,0.00047462,104870.0,104860.0,0.85485236]
[1750207919468,0.00047462,104870.0,104860.0,0.85185236]
[1750207919722,0.00047462,104870.0,104860.0,0.85585236]
[1750207924974,0.00047462,104870.0,104860.0,0.89761236]
[1750207926528,0.00047462,104870.0,104860.0,0.89753236]
[1750207926785,0.00047462,104870.0,104860.0,0.69737236]
[1750207926978,0.00047462,104870.0,104860.0,0.61061772]
[1750207927194,0.00047462,104870.0,104860.0,0.82703618]
[1750207928320,0.12432001,104890.0,104870.0,0.22432375]
[1750207928534,0.0314,104890.0,104880.0,0.09624176]
[1750207929429,0.19571123,104900.0,104880.0,0.09624176]
[1750207929645,0.21491883,104900.0,104880.0,0.09624176]
[1750207929867,0.20538604,104900.0,104880.0,0.09624176]
[1750207930929,0.19785343,104900.0,104880.0,0.16556538]
[1750207931143,0.01167454,104900.0,104880.0,0.36579302]
[1750207931382,0.23762534,104900.0,104880.0,0.39679311]
[1750207931591,0.01167445,104900.0,104880.0,0.655746]
[1750207931807,0.01267445,104900.0,104880.0,0.64621157]
[1750207932035,0.0222067,104900.0,104880.0,0.64621157]
[1750207932248,0.0483067,104900.0,104880.0,0.64621157]
[1750207932460,0.26472516,104900.0,104880.0,0.37000419]
[1750207933108,0.27952516,104900.0,104880.0,0.20208176]
[1750207933324,0.28905759,104900.0,104880.0,0.21161646]
[1750207933526,0.27952516,104900.0,104880.0,0.21161646]
[1750207933738,0.26999291,104900.0,104880.0,0.40230987]
[1750207933986,0.05357445,104900.0,104880.0,0.41184448]
[1750207934190,0.27952516,104900.0,104880.0,0.20208176]
[1750207934398,0.27952516,104900.0,104880.0,0.21161646]
[1750207934620,0.07263904,104900.0,104880.0,0.21161646]
[1750207934826,0.0631067,104900.0,104880.0,0.22115107]
[1750207935285,0.0631067,104900.0,104880.0,0.23068559]
[1750207935761,0.0631067,104900.0,104880.0,0.22115107]
[1750207935999,0.0631067,104900.0,104880.0,0.21161646]
[1750207936238,0.07263913,104900.0,104880.0,0.21161646]
[1750207936454,0.27952516,104900.0,104880.0,0.21161646]
[1750207936906,0.28905759,104900.0,104880.0,0.21161646]
[1750207937337,0.27952516,104900.0,104880.0,0.21161646]
[1750207937553,0.2890575,104900.0,104880.0,0.21161646]
[1750207938855,0.29859002,104900.0,104880.0,0.20208176]
[1750207939068,0.29859002,104900.0,104880.0,0.16908176]
[1750207939506,0.2890575,104900.0,104880.0,0.17861646]
[1750207939731,0.29859002,104900.0,104880.0,0.16908176]
[1750207939937,0.29858993,104900.0,104880.0,0.20218176]
[1750207940147,0.3265128,104900.0,104880.0,0.20218176]
[1750207940386,0.30812299,104900.0,104880.0,0.20218176]
[1750207940591,0.29859038,104900.0,104880.0,0.20218176]
[1750207941229,0.28905786,104900.0,104880.0,0.21171646]
[1750207941923,0.25519309,104900.0,104880.0,0.22125107]
[1750207942165,0.26472561,104900.0,104880.0,0.20218176]
[1750207942408,0.26472552,104900.0,104880.0,0.21171646]
[1750207942629,0.26472552,104900.0,104880.0,0.20218176]
[1750207943077,0.26472552,104900.0,104880.0,0.21171646]
[1750207943302,0.25519309,104900.0,104880.0,0.21171646]
[1750207943518,0.26472552,104900.0,104880.0,0.21171646]
[1750207944212,0.00314238,104900.0,104890.0,0.0652]
[1750207944410,0.00314238,104900.0,104890.0,0.58760329]
[1750207944632,0.00314238,104900.0,104890.0,0.58760338]
[1750207945066,0.00214238,104900.0,104890.0,0.58760347]
[1750207945277,0.00214238,104900.0,104890.0,0.59713699]
[1750207945517,0.00314238,104900.0,104890.0,0.70281964]
[1750207945729,0.00114238,104900.0,104890.0,0.70281964]
[1750207945946,0.00014238,104900.0,104890.0,0.70281964]
[1750207946186,0.00214238,104900.0,104890.0,0.70281946]
[1750207946399,0.00214238,104900.0,104890.0,0.69328621]
[1750207946621,0.00014238,104900.0,104890.0,0.70281955]
[1750207946850,0.00014238,104900.0,104890.0,0.7123528]
[1750207947066,0.00014238,104900.0,104890.0,0.69328621]
[1750207947276,0.00014238,104900.0,104890.0,0.7123528]
[1750207947500,0.00014238,104900.0,104890.0,0.70281955]
[1750207947705,0.00014238,104900.0,104890.0,0.70281964]
[1750207947916,0.00014238,104900.0,104890.0,0.71235271]
[1750207948572,0.00014238,104900.0,104890.0,0.7123528]
[1750207948790,0.00014238,104900.0,104890.0,0.69328585]
[1750207949005,0.00014238,104900.0,104890.0,0.68375251]
[1750207949220,0.00014238,104900.0,104890.0,0.49307675]
[1750207949474,0.00014238,104900.0,104890.0,0.37118501]
[1750207949682,0.00014238,104900.0,104890.0,0.38071844]
[1750207950115,0.00014238,104900.0,104890.0,0.39025178]
[1750207950328,0.00014238,104900.0,104890.0,0.39978503]
[1750207950533,0.00014238,104900.0,104890.0,0.61620349]
[1750207950780,0.00014238,104900.0,104890.0,0.69328603]
[1750207950989,0.00014238,104900.0,104890.0,0.71235244]
[1750207951425,0.00014238,104900.0,104890.0,0.70281928]
[1750207951635,0.00014238,104900.0,104890.0,0.71235244]
[1750207952095,0.00014238,104900.0,104890.0,0.72689329]
[1750207955556,0.00014238,104900.0,104890.0,0.72789329]
[1750207956030,0.00014238,104900.0,104890.0,0.72989329]
[1750207957747,0.00014238,104900.0,104890.0,0.67554407]
[1750207957978,0.00014238,104900.0,104890.0,0.83378407]
[1750207959673,0.00014238,104900.0,104890.0,0.63374407]
[1750207959899,0.00014238,104900.0,104890.0,0.83374407]
[1750207962685,0.00014238,104900.0,104890.0,0.61732561]
[1750207962898,0.00014238,104900.0,104890.0,0.83374407]
[1750207963159,0.00014238,104900.0,104890.0,0.92768822]
[1750207963839,0.00014238,104900.0,104890.0,1.42768822]
[1750207967383,0.10306092,104930.0,104890.0,1.72002116]
[1750207967627,0.14115267,104980.0,104950.0,0.20960611]
[1750207967854,0.05480069,104980.0,104960.0,0.09624176]
[1750207968066,0.04636027,104980.0,104960.0,0.30583975]
[1750207968283,0.04137453,104980.0,104960.0,0.31536673]
[1750207968503,0.0604244,104980.0,104960.0,0.09624176]
[1750207968711,0.28636821,104980.0,104960.0,0.09624176]
[1750207968928,0.27684286,104980.0,104960.0,0.09624176]
[1750207969132,0.26731779,104980.0,104960.0,0.28678815]
[1750207969354,0.63695647,104980.0,104960.0,0.28678815]
[1750207969582,0.29695647,104980.0,104960.0,0.28678815]
[1750207969798,0.64095647,104980.0,104960.0,0.29631558]
[1750207970012,0.30095647,104980.0,104960.0,0.28678815]
[1750207970255,0.65048127,104980.0,104960.0,0.28678815]
[1750207970462,0.66000625,104980.0,104960.0,0.28678815]
[1750207970886,0.66953142,104980.0,104960.0,0.09624176]
[1750207971098,0.66000625,104980.0,104960.0,0.09624176]
[1750207971317,0.66953132,104980.0,104960.0,0.09624176]
[1750207971803,0.66000625,104980.0,104960.0,0.09624176]
[1750207972434,0.64520625,104980.0,104960.0,0.09624176]
[1750207973074,0.65473142,104980.0,104960.0,0.09624176]
[1750207973537,0.64520625,104980.0,104960.0,0.09624176]
[1750207974218,0.63568127,104980.0,104960.0,0.2867901]
[1750207974445,0.64520625,104980.0,104960.0,0.2867901]
[1750207975121,0.63568127,104980.0,104960.0,0.333475]
[1750207975349,0.61910625,104980.0,104960.0,0.32394757]
[1750207975579,0.61910625,104980.0,104960.0,0.2867901]
[1750207975800,0.15816,104970.0,104960.0,0.2867901]
[1750207976705,0.15816,104970.0,104960.0,0.09624176]
[1750207978077,0.15816,104970.0,104960.0,0.29631797]
[1750207978536,0.16116,104970.0,104960.0,0.29631797]
[1750207978758,0.16116,104970.0,104960.0,0.40015771]
[1750207978978,0.16116,104970.0,104960.0,0.29631797]
[1750207979197,0.16116,104970.0,104960.0,0.30584531]
[1750207979451,0.16116,104970.0,104960.0,0.29631797]
[1750207980113,0.16116,104970.0,104960.0,0.09624176]
[1750207980564,0.003,104970.0,104960.0,0.09624176]
[1750207980782,0.003,104970.0,104960.0,0.16626919]
[1750207980966,0.16112,104970.0,104960.0,0.15674176]
[1750207981660,0.16112,104970.0,104960.0,0.16626919]
[1750207981895,0.16112,104970.0,104960.0,0.15674176]
[1750207982314,0.16112,104970.0,104960.0,0.16626919]
[1750207982542,0.16112,104970.0,104960.0,0.15674176]
[1750207983165,0.16112,104970.0,104960.0,0.34729054]
[1750207983449,0.16112,104970.0,104960.0,0.36634522]
[1750207983687,0.16112,104970.0,104960.0,0.16626919]
[1750207983915,0.37753846,104970.0,104960.0,0.15674176]
[1750207984142,0.16112,104970.0,104960.0,0.15674176]
[1750207984588,0.16112,104970.0,104960.0,0.09624176]
[1750207985951,0.16112,104970.0,104960.0,0.15864176]
[1750207987361,0.37753846,104970.0,104960.0,0.15864176]
[1750207987648,0.16112,104970.0,104960.0,0.15864176]
[1750207988609,0.16108,104970.0,104960.0,0.15864176]
[1750207991396,0.37749846,104970.0,104960.0,0.15864176]
[1750207994469,0.16108,104970.0,104960.0,0.15864176]
[1750207994724,0.37749846,104970.0,104960.0,0.15864176]
[1750207996009,0.21941846,104970.0,104960.0,0.15864176]
[1750207996223,0.37749846,104970.0,104960.0,0.15864176]
[1750207997078,0.16108,104970.0,104960.0,0.15864176]
[1750207997314,0.37749846,104970.0,104960.0,0.15864176]
[1750207997520,0.38644112,104970.0,104960.0,0.15864176]
[1750207998219,0.03562671,104960.0,104940.0,0.0624]
[1750207998426,0.37449846,104950.0,104940.0,0.09624176]
[1750207998681,0.38402598,104950.0,104940.0,0.09624176]
[1750207998889,0.39297009,104950.0,104940.0,0.09624176]
[1750207999107,0.39355378,104950.0,104940.0,0.09624176]
[1750207999319,0.39355369,104950.0,104940.0,0.09624176]
[1750207999533,0.38402598,104950.0,104940.0,0.09624176]
[1750207999754,0.37449846,104950.0,104940.0,0.09624176]
[1750207999975,0.15808,104950.0,104940.0,0.09624176]
[1750208000203,0.15808,104950.0,104940.0,0.12864176]
[1750208000837,0.16760752,104950.0,104940.0,0.12964176]
[1750208001719,0.00952752,104950.0,104940.0,0.13064176]
[1750208001935,0.4948376,104960.0,104940.0,0.13064176]
[1750208002372,0.48531017,104960.0,104940.0,0.13064176]
[1750208002632,0.46243906,104960.0,104940.0,0.13064176]
[1750208003044,0.22594598,104950.0,104940.0,0.12864176]
[1750208003493,0.21641846,104950.0,104940.0,0.12864176]
[1750208004374,0.21641846,104950.0,104940.0,0.16184176]
[1750208005011,0.21641846,104950.0,104940.0,0.16284176]
[1750208005442,0.21641846,104950.0,104940.0,0.16384176]
[1750208005654,0.43870638,104960.0,104940.0,0.16384176]
[1750208006537,0.43870638,104960.0,104940.0,0.16284176]
[1750208006761,0.21276076,104960.0,104940.0,0.16284176]
[1750208006978,0.39355206,104960.0,104940.0,0.17237101]
[1750208007189,0.39355206,104960.0,104940.0,0.18190017]
[1750208007395,0.38402517,104960.0,104940.0,0.18190017]
[1750208007607,0.39355206,104960.0,104940.0,0.24591913]
[1750208007855,0.39355206,104960.0,104940.0,0.25444829]
[1750208008057,0.21741846,104960.0,104940.0,0.43550383]
[1750208008277,0.38498526,104960.0,104940.0,0.43550383]
[1750208008501,0.38498517,104960.0,104950.0,0.0647]
[1750208008917,0.39451206,104960.0,104950.0,0.0647]
[1750208009154,0.40403922,104960.0,104950.0,0.0329]
[1750208009373,0.39351206,104960.0,104940.0,0.16104176]
[1750208009580,0.40303913,104960.0,104940.0,0.16104176]
[1750208009787,0.41256638,104960.0,104940.0,0.16104176]
[1750208010214,0.00952762,104950.0,104940.0,0.16104176]
[1750208010448,0.23547388,104950.0,104940.0,0.12864176]
[1750208011310,0.00952861,104940.0,104930.0,0.1086522]
[1750208011524,0.22594698,104940.0,104930.0,0.20206176]
[1750208011743,0.23547578,104940.0,104920.0,0.30148]
[1750208011968,0.25453383,104940.0,104920.0,0.43022176]
[1750208012177,0.25453365,104940.0,104920.0,0.43022176]
[1750208012605,0.24514695,104940.0,104920.0,0.43022176]
[1750208012848,0.24514695,104940.0,104930.0,0.001]
[1750208014185,0.58514695,104940.0,104930.0,0.001]
[1750208014462,0.59467602,104940.0,104930.0,0.001]
[1750208014689,0.60420518,104940.0,104920.0,0.20126176]
[1750208016022,0.60420591,104940.0,104920.0,0.20126176]
[1750208018372,0.00952943,104930.0,104920.0,0.15954176]
[1750208018624,0.58514786,104940.0,104920.0,0.15954176]
[1750208018840,0.00952934,104930.0,104920.0,0.15954176]
[1750208019053,0.59467711,104940.0,104920.0,0.15954176]
[1750208019934,0.00952943,104930.0,104920.0,0.15954176]
[1750208020150,0.00952934,104930.0,104920.0,0.15954176]
[1750208020367,0.40061739,104940.0,104920.0,0.15954176]
[1750208020581,0.5756187,104940.0,104920.0,0.16154176]
[1750208021066,0.58514795,104940.0,104920.0,0.16154176]
[1750208021288,0.0095297,104930.0,104920.0,0.16054176]
[1750208021510,0.8018357,104940.0,104920.0,0.15954176]
[1750208021730,0.7767357,104940.0,104920.0,0.15954176]
[1750208021953,0.00952934,104930.0,104920.0,0.15954176]
[1750208022269,0.01905877,104930.0,104920.0,0.15954176]
[1750208022511,0.00952934,104930.0,104920.0,0.0633]
[1750208022742,0.00952934,104930.0,104920.0,0.0643]
[1750208022980,0.01905886,104930.0,104920.0,0.0643]
[1750208023452,0.02858856,104930.0,104920.0,0.0643]
[1750208023894,0.01905886,104930.0,104920.0,0.0643]
[1750208024843,0.02858847,104930.0,104920.0,0.0653]
[1750208026171,0.01905886,104930.0,104920.0,0.0653]
[1750208026601,0.00952934,104930.0,104920.0,0.0653]
[1750208029112,0.01905886,104930.0,104920.0,0.0653]
[1750208029589,0.78514107,104930.0,104920.0,0.002]
[1750208029858,0.73347768,104930.0,104920.0,0.0339]
[1750208030084,0.73347768,104930.0,104920.0,0.0663]